[Event "Cracovia Festival-A 2023"]
[Site "Krakow"]
[Date "2024.01.02"]
[Round "7.18"]
[White "Balint, Peter"]
[Black "Cieslak, Patryk"]
[Result "1-0"]
[ECO "B50"]
[WhiteElo "2187"]
[BlackElo "2284"]
[Annotator "RC"]
[PlyCount "69"]
[EventDate "2023.12.24"]
[EventType "swiss"]
[EventCountry "POL"]
[SourceTitle "playchess.com"]
[Source "ChessBase"]
[SourceQuality "1"]
[TimeControl "40/5400+30:1800+30"]

1. e4 {[%emt 0:00:02]} c5 {[%emt 0:00:00]} 2. Nf3 {[%emt 0:00:06]} d6 {[%emt 0:00:01]} 3. Nc3 {[%emt 0:00:05]} Nf6 {[%emt 0:00:24]} 4. d4 {[%emt 0:00:04]} cxd4 {[%emt 0:00:03]} 5. Qxd4 {[%emt 0:00:04]} Nc6 {[%emt 0:01:15]} 6. Qd3 {[%emt 0:00:06]} g6 {[%emt 0:05:22]} 7. Nd5 {[%emt 0:01:16]} Bg7 {[%emt 0:04:29]} 8. c3 {[%emt 0:00:05]} O-O {[%emt 0:03:37]} 9. Bg5 {[%emt 0:00:24]} Bg4 {[%emt 0:09:54]} 10. Be2 {[%emt 0:01:59]} Nd7 {[%emt 0:03:25]} 11. Rd1 {[%emt 0:18:42]} Nc5 {[%emt 0:04:46]} 12. Qc2 {[%emt 0:07:11]} Ne6 {[%emt 0:04:33]} 13. Be3 {[%emt 0:06:24]} Nc7 {[%emt 0:07:01]} 14. O-O {[%emt 0:06:35]} Nxd5 {[%emt 0:02:50]} 15. exd5 {[%emt 0:00:58]} Nb8 {[%emt 0:04:10]} 16. Nd4 {[%emt 0:06:41]} Bxe2 {[%emt 0:00:58]} 17. Qxe2 {[%emt 0:00:04]} Nd7 {[%emt 0:00:36]} 18. Rfe1 {[%emt 0:00:59]} Re8 {[%emt 0:01:27]} 19. Bg5 {[%emt 0:06:05]} Bf6 {[%emt 0:00:48]} 20. Bxf6 {[%emt 0:01:01]} Nxf6 {[%emt 0:01:26]} 21. c4 {[%emt 0:01:10]} Kg7 {[%emt 0:02:20]} 22. b3 {[%emt 0:01:37]} Qd7 {[%emt 0:01:12]} 23. Rd3 {[%emt 0:01:07]} Qc7 {[%emt 0:06:26]} 24. Re3 {[%emt 0:03:01]} Qb6 {[%emt 0:01:03]} 25. Qd2 {[%emt 0:00:46]} Qc7 {[%emt 0:05:33]} 26. h3 {[%emt 0:11:11]} a6 {[%emt 0:01:01]} 27. a4 {[%emt 0:00:11]} Kg8 {[%emt 0:01:15]} 28. Qe2 {[%emt 0:05:32]} Kf8 {[%emt 0:02:39]} 29. Rg3 {[%emt 0:01:01]} Nh5 {[%emt 0:03:09]} 30. Qxh5 {[%emt 0:01:23]} gxh5 {[%emt 0:02:11]} 31. Ne6+ {[%emt 0:00:09]} fxe6 {[%emt 0:01:08]} 32. Ree3 {[%emt 0:00:03]} Rec8 {[%emt 0:03:28]} 33. Ref3+ {[%emt 0:00:04]} Ke8 {[%emt 0:00:02]} 34. dxe6 {[%emt 0:00:09]} Qxc4 {[%emt 0:00:17]} 35. Rg8# {[%emt 0:00:35]} 1-0

[Event "Cracovia Festival-A 2023"]
[Site "Krakow"]
[Date "2024.01.02"]
[Round "7.19"]
[White "Ashwath, R.."]
[Black "Pyrig, Roman"]
[Result "1-0"]
[ECO "D35"]
[WhiteElo "2284"]
[BlackElo "2154"]
[Annotator "RC"]
[PlyCount "81"]
[EventDate "2023.12.24"]
[EventType "swiss"]
[EventCountry "POL"]
[SourceTitle "playchess.com"]
[Source "ChessBase"]
[SourceQuality "1"]
[TimeControl "40/5400+30:1800+30"]

1. d4 {[%emt 0:01:00]} d5 {[%emt 0:02:40]} 2. c4 {[%emt 0:00:15]} e6 {[%emt 0:00:03]} 3. Nc3 {[%emt 0:00:05]} Nf6 {[%emt 0:00:13]} 4. cxd5 {[%emt 0:00:03]} exd5 {[%emt 0:00:01]} 5. Bg5 {[%emt 0:00:08]} Be7 {[%emt 0:00:08]} 6. e3 {[%emt 0:00:35]} h6 {[%emt 0:00:03]} 7. Bh4 {[%emt 0:00:24]} Bg4 {[%emt 0:00:02]} 8. Qc2 {[%emt 0:15:21]} Nbd7 {[%emt 0:04:16]} 9. Bd3 {[%emt 0:05:45]} O-O {[%emt 0:04:20]} 10. f4 {[%emt 0:04:43]} c6 {[%emt 0:10:38]} 11. h3 {[%emt 0:08:02]} Bh5 {[%emt 0:00:04]} 12. Bf2 {[%emt 0:04:14]} Ne4 {[%emt 0:03:00]} 13. Bxe4 {[%emt 0:13:18]} dxe4 {[%emt 0:00:04]} 14. g4 {[%emt 0:00:24]} Bg6 {[%emt 0:00:01]} 15. f5 {[%emt 0:00:09]} Bh7 {[%emt 0:00:02]} 16. Nxe4 {[%emt 0:04:26]} Qa5+ {[%emt 0:08:57]} 17. Nc3 {[%emt 0:01:33]} c5 {[%emt 0:00:05]} 18. Nf3 {[%emt 0:06:00]} cxd4 {[%emt 0:01:03]} 19. Nxd4 {[%emt 0:00:23]} Rac8 {[%emt 0:00:09]} 20. Qa4 {[%emt 0:02:50]} Qxa4 {[%emt 0:03:27]} 21. Nxa4 {[%emt 0:00:05]} Bf6 {[%emt 0:00:19]} 22. Nc3 {[%emt 0:04:06]} g6 {[%emt 0:08:11]} 23. e4 {[%emt 0:10:18]} Nc5 {[%emt 0:03:14]} 24. Ke2 {[%emt 0:02:29]} Rfe8 {[%emt 0:00:29]} 25. Kf3 {[%emt 0:00:18]} Nd3 {[%emt 0:01:12]} 26. Nd5 {[%emt 0:01:28]} Be5 {[%emt 0:02:13]} 27. Be3 {[%emt 0:02:02]} Nxb2 {[%emt 0:00:03]} 28. Rab1 {[%emt 0:01:01]} Nc4 {[%emt 0:01:21]} 29. Rxb7 {[%emt 0:00:13]} Kh8 {[%emt 0:05:10]} 30. Rd1 {[%emt 0:08:58]} g5 {[%emt 0:03:35]} 31. Rxa7 {[%emt 0:01:36]} Bb8 {[%emt 0:00:29]} 32. Rb7 {[%emt 0:01:08]} Bg8 {[%emt 0:05:12]} 33. Nb5 {[%emt 0:02:08]} Ne5+ {[%emt 0:00:48]} 34. Ke2 {[%emt 0:00:07]} Kg7 {[%emt 0:05:57]} 35. Bd4 {[%emt 0:00:18]} Kf8 {[%emt 0:00:01]} 36. Nbc7 {[%emt 0:00:57]} Nc6 {[%emt 0:03:30]} 37. Nxe8 {[%emt 0:00:23]} Rxe8 {[%emt 0:00:01]} 38. Nf6 {[%emt 0:00:40]} Rc8 {[%emt 0:00:01]} 39. Nd7+ {[%emt 0:00:26]} Ke8 {[%emt 0:00:02]} 40. Nxb8 {[%emt 0:00:00]} Nxb8 {[%emt 0:00:00]} 41. Bf6 1-0

[Event "Cracovia Festival-A 2023"]
[Site "Krakow"]
[Date "2024.01.02"]
[Round "7.20"]
[White "Szczurek, Krzysztof"]
[Black "Nemsadze, Daviti"]
[Result "1-0"]
[ECO "A35"]
[WhiteElo "2175"]
[BlackElo "2253"]
[Annotator "ChessBase"]
[PlyCount "63"]
[EventDate "2023.12.24"]
[EventType "swiss"]
[EventCountry "POL"]
[SourceTitle "playchess.com"]
[Source "ChessBase"]
[SourceQuality "1"]
[TimeControl "40/5400+30:1800+30"]

1. Nf3 {[%emt 0:00:02]} c5 {[%emt 0:00:04]} 2. c4 {[%emt 0:00:30]} Nc6 {[%emt 0:00:04]} 3. Nc3 {[%emt 0:00:28]} Nf6 {[%emt 0:00:09]} 4. e4 {[%emt 0:00:53]} e5 {[%emt 0:04:14]} 5. d3 {[%emt 0:00:21]} d6 {[%emt 0:00:23]} 6. Be2 {[%emt 0:01:14]} a6 {[%emt 0:02:40]} 7. O-O {[%emt 0:01:01]} Rb8 {[%emt 0:03:47]} 8. Nd5 {[%emt 0:01:08]} Be7 {[%emt 0:00:47]} 9. Bd2 {[%emt 0:09:03]} b5 {[%emt 0:09:30]} 10. b3 {[%emt 0:01:02]} O-O {[%emt 0:01:35]} 11. Bc3 {[%emt 0:07:54]} Bg4 {[%emt 0:03:23]} 12. Nxe7+ {[%emt 0:05:48]} Nxe7 {[%emt 0:05:37]} 13. Nh4 {[%emt 0:00:39]} Bxe2 {[%emt 0:20:18]} 14. Qxe2 {[%emt 0:00:39]} g5 {[%emt 0:02:39]} 15. Nf3 {[%emt 0:05:23]} h6 {[%emt 0:00:35]} 16. h4 {[%emt 0:02:37]} Nh7 {[%emt 0:01:07]} 17. Nh2 {[%emt 0:01:06]} Ng6 {[%emt 0:12:12]} 18. Ng4 {[%emt 0:05:21]} Kg7 {[%emt 0:03:13]} 19. Ne3 {[%emt 0:00:14]} Nf4 {[%emt 0:07:41]} 20. Qf3 {[%emt 0:01:51]} Nf6 {[%emt 0:09:10]} 21. g3 {[%emt 0:04:21]} Ne6 {[%emt 0:00:57]} 22. Nf5+ {[%emt 0:02:02]} Kg6 {[%emt 0:00:30]} 23. h5+ {[%emt 0:02:39]} Kh7 {[%emt 0:00:55]} 24. Nxd6 {[%emt 0:01:12]} Qxd6 {[%emt 0:00:51]} 25. Qxf6 {[%emt 0:00:07]} Qxd3 {[%emt 0:01:38]} 26. Bxe5 {[%emt 0:03:03]} Rb7 {[%emt 0:03:25]} 27. Qf5+ {[%emt 0:00:33]} Kg8 {[%emt 0:00:02]} 28. Rad1 {[%emt 0:00:15]} Qe2 {[%emt 0:00:42]} 29. Rd6 {[%emt 0:01:21]} Qxh5 {[%emt 0:01:32]} 30. Qf6 {[%emt 0:00:10]} Kh7 {[%emt 0:00:08]} 31. Rxe6 {[%emt 0:00:11]} Rg8 {[%emt 0:00:25]} 32. Re8 {[%emt 0:00:18]} 1-0

[Event "Cracovia Festival-A 2023"]
[Site "Krakow"]
[Date "2024.01.02"]
[Round "7.21"]
[White "Grochol, Kamil"]
[Black "Klepek, Witold"]
[Result "1/2-1/2"]
[ECO "A45"]
[WhiteElo "2101"]
[BlackElo "2252"]
[Annotator "RC"]
[PlyCount "23"]
[EventDate "2023.12.24"]
[EventType "swiss"]
[EventCountry "POL"]
[SourceTitle "playchess.com"]
[Source "ChessBase"]
[SourceQuality "1"]
[TimeControl "40/5400+30:1800+30"]

1. d4 {[%emt 0:07:37]} Nf6 {[%emt 0:00:57]} 2. Bf4 {[%emt 0:00:03]} c5 {[%emt 0:02:33]} 3. c3 {[%emt 0:00:17]} e6 {[%emt 0:01:08]} 4. e3 {[%emt 0:00:05]} b6 {[%emt 0:01:04]} 5. Nd2 {[%emt 0:00:26]} cxd4 {[%emt 0:02:34]} 6. exd4 {[%emt 0:00:09]} Bb7 {[%emt 0:00:24]} 7. Ngf3 {[%emt 0:00:21]} Be7 {[%emt 0:00:50]} 8. h3 {[%emt 0:00:45]} O-O {[%emt 0:00:20]} 9. Bd3 {[%emt 0:01:09]} d6 {[%emt 0:00:32]} 10. O-O {[%emt 0:01:12]} Re8 {[%emt 0:02:28]} 11. Bh2 {[%emt 0:01:35]} Nbd7 {[%emt 0:02:39]} 12. Re1 {[%emt 0:00:32]} 1/2-1/2

[Event "Cracovia Festival-A 2023"]
[Site "Krakow"]
[Date "2024.01.02"]
[Round "7.22"]
[White "Eke, Salih"]
[Black "Turski, Bartlomiej"]
[Result "1-0"]
[ECO "D70"]
[WhiteElo "2217"]
[BlackElo "2380"]
[Annotator "RC"]
[PlyCount "91"]
[EventDate "2023.12.24"]
[EventType "swiss"]
[EventCountry "POL"]
[SourceTitle "playchess.com"]
[Source "ChessBase"]
[SourceQuality "1"]
[TimeControl "40/5400+30:1800+30"]

1. d4 {[%emt 0:05:58]} Nf6 {[%emt 0:00:05]} 2. c4 {[%emt 0:00:04]} g6 {[%emt 0:00:04]} 3. Nf3 {[%emt 0:00:11]} Bg7 {[%emt 0:00:06]} 4. g3 {[%emt 0:00:18]} c6 {[%emt 0:00:12]} 5. Bg2 {[%emt 0:00:06]} O-O {[%emt 0:00:10]} 6. O-O {[%emt 0:00:19]} d5 {[%emt 0:00:05]} 7. b3 {[%emt 0:02:56]} dxc4 {[%emt 0:00:25]} 8. bxc4 {[%emt 0:00:13]} c5 {[%emt 0:00:03]} 9. e3 {[%emt 0:03:09]} Ne4 {[%emt 0:01:24]} 10. Bb2 {[%emt 0:01:24]} Qb6 {[%emt 0:00:33]} 11. Qb3 {[%emt 0:05:17]} Rd8 {[%emt 0:01:15]} 12. Ne5 {[%emt 0:12:03]} cxd4 {[%emt 0:02:13]} 13. Bxd4 {[%emt 0:01:52]} Nc5 {[%emt 0:00:05]} 14. Qa3 {[%emt 0:06:10]} Bxe5 {[%emt 0:29:00]} 15. Bxe5 {[%emt 0:01:27]} Nc6 {[%emt 0:00:44]} 16. Bc3 {[%emt 0:04:53]} Bf5 {[%emt 0:09:55]} 17. Nd2 {[%emt 0:00:29]} a5 {[%emt 0:01:46]} 18. Nb3 {[%emt 0:10:28]} Ne6 {[%emt 0:14:46]} 19. c5 {[%emt 0:08:54]} Qa6 {[%emt 0:01:09]} 20. e4 {[%emt 0:02:58]} Bg4 {[%emt 0:00:17]} 21. f3 {[%emt 0:01:11]} Bh5 {[%emt 0:00:38]} 22. g4 {[%emt 0:00:36]} Nf4 {[%emt 0:00:48]} 23. Nc1 {[%emt 0:00:45]} Nxg2 {[%emt 0:04:37]} 24. Kxg2 {[%emt 0:00:33]} Bxg4 {[%emt 0:00:52]} 25. fxg4 {[%emt 0:00:09]} Qc4 {[%emt 0:01:06]} 26. Re1 {[%emt 0:03:23]} a4 {[%emt 0:04:10]} 27. Rb1 {[%emt 0:02:54]} Rd1 {[%emt 0:03:13]} 28. Rxd1 {[%emt 0:01:10]} Qxe4+ {[%emt 0:00:06]} 29. Kf2 {[%emt 0:03:09]} Qf4+ {[%emt 0:13:41]} 30. Ke1 {[%emt 0:00:35]} Qe3+ {[%emt 0:00:09]} 31. Ne2 {[%emt 0:00:16]} Ne5 {[%emt 0:00:10]} 32. Qb2 {[%emt 0:08:34]} Nf3+ {[%emt 0:03:14]} 33. Kf1 {[%emt 0:00:05]} Nxh2+ 34. Kg2 Nxg4 {[%emt 0:01:14]} 35. Ng3 {[%emt 0:01:13]} Qf4 {[%emt 0:05:31]} 36. Bd4 {[%emt 0:01:34]} h5 {[%emt 0:03:14]} 37. Qxb7 {[%emt 0:00:23]} Rd8 {[%emt 0:00:58]} 38. Qf3 {[%emt 0:01:02]} Rxd4 {[%emt 0:01:00]} 39. Qxf4 {[%emt 0:00:25]} Rxf4 {[%emt 0:00:01]} 40. c6 {[%emt 0:00:00]} Ne3+ {[%emt 0:00:00]} 41. Kg1 {[%emt 0:01:14]} Nxd1 {[%emt 0:01:31]} 42. Rc1 {[%emt 0:01:51]} Rf3 {[%emt 0:00:55]} 43. c7 {[%emt 0:00:18]} Rxg3+ {[%emt 0:00:22]} 44. Kh2 {[%emt 0:00:06]} Rd3 {[%emt 0:00:24]} 45. c8=Q+ {[%emt 0:00:07]} Kh7 {[%emt 0:00:26]} 46. Qc2 {[%emt 0:00:16]} 1-0

[Event "Cracovia Festival-A 2023"]
[Site "Krakow"]
[Date "2024.01.02"]
[Round "7.23"]
[White "Akhvlediani, Irakli"]
[Black "Zdybel, Przemyslaw"]
[Result "1-0"]
[ECO "D85"]
[WhiteElo "2359"]
[BlackElo "2180"]
[Annotator "RC"]
[PlyCount "105"]
[EventDate "2023.12.24"]
[EventType "swiss"]
[EventCountry "POL"]
[SourceTitle "playchess.com"]
[Source "ChessBase"]
[SourceQuality "1"]
[TimeControl "40/5400+30:1800+30"]

1. c4 {[%emt 0:00:16]} g6 {[%emt 0:00:27]} 2. d4 {[%emt 0:00:43]} Nf6 {[%emt 0:00:22]} 3. Nc3 {[%emt 0:00:05]} d5 {[%emt 0:00:04]} 4. Nf3 {[%emt 0:00:05]} Bg7 {[%emt 0:00:06]} 5. cxd5 {[%emt 0:00:05]} Nxd5 {[%emt 0:00:06]} 6. e4 {[%emt 0:00:03]} Nxc3 {[%emt 0:00:13]} 7. bxc3 {[%emt 0:00:05]} c5 {[%emt 0:00:06]} 8. h3 {[%emt 0:00:06]} O-O {[%emt 0:03:17]} 9. Be2 {[%emt 0:00:49]} cxd4 {[%emt 0:03:02]} 10. cxd4 {[%emt 0:00:05]} Nc6 {[%emt 0:00:03]} 11. Be3 {[%emt 0:00:04]} Qa5+ {[%emt 0:00:15]} 12. Bd2 {[%emt 0:00:07]} Qa3 {[%emt 0:01:30]} 13. d5 {[%emt 0:00:10]} Ne5 {[%emt 0:03:15]} 14. Rb1 {[%emt 0:01:57]} b6 {[%emt 0:09:24]} 15. O-O {[%emt 0:07:17]} Nxf3+ {[%emt 0:01:31]} 16. Bxf3 {[%emt 0:00:05]} Qxa2 {[%emt 0:24:15]} 17. Re1 {[%emt 0:27:25]} Be5 {[%emt 0:05:24]} 18. Bb4 {[%emt 0:27:56]} Re8 {[%emt 0:00:08]} 19. Re2 {[%emt 0:08:15]} Qa6 {[%emt 0:02:07]} 20. Re3 {[%emt 0:00:44]} Bd7 {[%emt 0:05:02]} 21. Be2 {[%emt 0:02:10]} Qb7 {[%emt 0:04:12]} 22. Ra3 {[%emt 0:00:06]} b5 {[%emt 0:04:38]} 23. Qd2 {[%emt 0:03:28]} Qb8 {[%emt 0:05:03]} 24. h4 {[%emt 0:07:25]} Qb6 {[%emt 0:11:14]} 25. h5 {[%emt 0:01:52]} Qf6 {[%emt 0:02:03]} 26. g3 {[%emt 0:00:21]} Bd4 {[%emt 0:02:36]} 27. Rf3 {[%emt 0:03:54]} Qh8 {[%emt 0:05:38]} 28. Rd1 {[%emt 0:00:27]} Be5 {[%emt 0:00:20]} 29. Ra3 {[%emt 0:01:36]} Bd6 {[%emt 0:02:16]} 30. Bc3 {[%emt 0:01:16]} f6 {[%emt 0:00:06]} 31. Ra6 {[%emt 0:00:31]} gxh5 {[%emt 0:01:12]} 32. Bxh5 {[%emt 0:01:29]} Rec8 {[%emt 0:01:04]} 33. Bb4 {[%emt 0:04:38]} Bxb4 {[%emt 0:00:09]} 34. Qxb4 {[%emt 0:00:01]} Qg7 {[%emt 0:00:15]} 35. d6 {[%emt 0:00:35]} e6 {[%emt 0:01:50]} 36. Bf3 {[%emt 0:01:26]} Rc4 {[%emt 0:01:15]} 37. Qb2 {[%emt 0:00:20]} e5 {[%emt 0:02:14]} 38. Be2 {[%emt 0:00:51]} Rc5 {[%emt 0:01:22]} 39. Qb4 {[%emt 0:00:34]} Rcc8 {[%emt 0:00:32]} 40. Bxb5 {[%emt 0:00:00]} Rcb8 {[%emt 0:00:00]} 41. Rxa7 {[%emt 0:02:29]} Qg4 {[%emt 0:05:13]} 42. Qb3+ {[%emt 0:03:17]} Be6 {[%emt 0:05:46]} 43. Rxa8 {[%emt 0:03:26]} Rxa8 {[%emt 0:00:05]} 44. Bc4 {[%emt 0:00:52]} Bxc4 {[%emt 0:00:08]} 45. Qxc4+ {[%emt 0:00:04]} Kh8 {[%emt 0:00:07]} 46. Rb1 {[%emt 0:01:19]} Rg8 {[%emt 0:07:16]} 47. Qf7 {[%emt 0:07:37]} Qg6 {[%emt 0:03:27]} 48. Qe6 {[%emt 0:03:45]} Re8 {[%emt 0:00:26]} 49. Qd5 {[%emt 0:00:08]} Kg7 {[%emt 0:01:10]} 50. Rc1 {[%emt 0:04:20]} Rd8 {[%emt 0:01:34]} 51. Qe6 {[%emt 0:01:51]} Kh6 {[%emt 0:01:07]} 52. Rc7 {[%emt 0:05:56]} Ra8 {[%emt 0:00:01]} 53. Qh3+ {[%emt 0:00:15]} 1-0

[Event "Cracovia Festival-A 2023"]
[Site "Krakow"]
[Date "2024.01.02"]
[Round "7.24"]
[White "Kucza, Karol"]
[Black "Zarnowski, Krzysztof"]
[Result "1-0"]
[ECO "C11"]
[WhiteElo "2343"]
[BlackElo "2114"]
[Annotator "RC"]
[PlyCount "55"]
[EventDate "2023.12.24"]
[EventType "swiss"]
[EventCountry "POL"]
[SourceTitle "playchess.com"]
[Source "ChessBase"]
[SourceQuality "1"]
[TimeControl "40/5400+30:1800+30"]

1. e4 {[%emt 0:01:38]} e6 {[%emt 0:00:14]} 2. d4 {[%emt 0:02:31]} d5 {[%emt 0:00:04]} 3. Nc3 {[%emt 0:01:32]} Nf6 {[%emt 0:00:41]} 4. e5 {[%emt 0:02:16]} Nfd7 {[%emt 0:00:05]} 5. f4 {[%emt 0:00:23]} c5 {[%emt 0:00:12]} 6. Nf3 {[%emt 0:00:08]} Nc6 {[%emt 0:00:10]} 7. Be3 {[%emt 0:00:23]} Be7 {[%emt 0:00:49]} 8. Be2 {[%emt 0:02:09]} O-O {[%emt 0:00:16]} 9. O-O {[%emt 0:00:17]} a6 {[%emt 0:00:26]} 10. Qd2 {[%emt 0:00:23]} b5 {[%emt 0:00:27]} 11. Nd1 {[%emt 0:00:53]} Qb6 {[%emt 0:07:03]} 12. c3 {[%emt 0:01:56]} b4 {[%emt 0:01:04]} 13. Bd3 {[%emt 0:04:26]} a5 {[%emt 0:09:32]} 14. f5 {[%emt 0:02:45]} cxd4 {[%emt 0:14:28]} 15. cxd4 {[%emt 0:01:30]} exf5 {[%emt 0:01:48]} 16. Bxf5 {[%emt 0:00:17]} Nd8 {[%emt 0:01:15]} 17. Bg5 {[%emt 0:26:37]} f6 {[%emt 0:10:26]} 18. Ne3 {[%emt 0:03:05]} Qb7 {[%emt 0:04:24]} 19. Bh4 {[%emt 0:07:21]} g6 {[%emt 0:07:55]} 20. Bc2 {[%emt 0:12:04]} Kg7 {[%emt 0:11:24]} 21. Ng4 {[%emt 0:02:03]} Nxe5 {[%emt 0:05:53]} 22. Qh6+ {[%emt 0:03:48]} Kg8 {[%emt 0:00:06]} 23. Nfxe5 {[%emt 0:00:54]} fxe5 {[%emt 0:02:37]} 24. Bxg6 {[%emt 0:13:22]} hxg6 {[%emt 0:00:26]} 25. Qxg6+ {[%emt 0:00:05]} Kh8 {[%emt 0:00:05]} 26. Rxf8+ {[%emt 0:02:05]} Bxf8 {[%emt 0:00:05]} 27. Rf1 {[%emt 0:00:47]} Be7 {[%emt 0:06:43]} 28. Nf6 {[%emt 0:01:11]} 1-0

[Event "Cracovia Festival-A 2023"]
[Site "Krakow"]
[Date "2024.01.02"]
[Round "7.25"]
[White "Valiyev, Shahin"]
[Black "Ongut, Tamas Gunes"]
[Result "1/2-1/2"]
[ECO "C60"]
[WhiteElo "2158"]
[BlackElo "2313"]
[Annotator "RC"]
[PlyCount "36"]
[EventDate "2023.12.24"]
[EventType "swiss"]
[EventCountry "POL"]
[SourceTitle "playchess.com"]
[Source "ChessBase"]
[SourceQuality "1"]
[TimeControl "40/5400+30:1800+30"]

1. e4 {[%emt 0:00:02]} e5 {[%emt 0:07:24]} 2. Nf3 {[%emt 0:00:06]} Nc6 {[%emt 0:00:05]} 3. Bb5 {[%emt 0:00:07]} Nge7 {[%emt 0:00:06]} 4. O-O {[%emt 0:00:27]} Ng6 {[%emt 0:00:06]} 5. c3 {[%emt 0:01:23]} d5 {[%emt 0:00:07]} 6. Qa4 {[%emt 0:09:10]} dxe4 {[%emt 0:00:09]} 7. Qxe4 {[%emt 0:06:30]} f5 {[%emt 0:04:05]} 8. Bxc6+ {[%emt 0:01:37]} bxc6 {[%emt 0:00:08]} 9. Qxc6+ {[%emt 0:00:06]} Bd7 {[%emt 0:00:07]} 10. Qc4 {[%emt 0:08:34]} Qf6 {[%emt 0:06:22]} 11. Re1 {[%emt 0:07:44]} Bd6 {[%emt 0:04:04]} 12. Na3 {[%emt 0:08:59]} Rb8 {[%emt 0:15:07]} 13. Nxe5 {[%emt 0:09:12]} Nxe5 {[%emt 0:08:21]} 14. d4 {[%emt 0:00:42]} Qe6 {[%emt 0:07:53]} 15. dxe5 {[%emt 0:23:42]} Bxa3 {[%emt 0:00:17]} 16. Qxe6+ {[%emt 0:00:05]} Bxe6 {[%emt 0:00:08]} 17. bxa3 {[%emt 0:00:04]} Rb5 {[%emt 0:03:24]} 18. Be3 {[%emt 0:03:06]} Kd7 {[%emt 0:00:21]} 1/2-1/2